[Event "*** Titled Tuesday Blitz"]
[Site "Chess.com"]
[Date "2020.04.28"]
[Round "9"]
[White "NZT72"]
[Black "Jeffinho023"]
[Result "1/2-1/2"]
[WhiteElo "2405"]
[BlackElo "2545"]
[TimeControl "180+1"]
[EndTime "11:47:03 PDT"]
[Termination "Game drawn by repetition"]

1. c4 {[%clk 0:02:31.3]} 1... Nf6 {[%clk 0:02:59.5]} 2. g3 {[%clk 0:02:30.4]}
2... c5 {[%clk 0:02:59.5]} 3. Bg2 {[%clk 0:02:30.1]} 3... Nc6 {[%clk 0:02:59.7]}
4. Nc3 {[%clk 0:02:28.9]} 4... g6 {[%clk 0:02:59.7]} 5. Nf3 {[%clk 0:02:28.8]}
5... Bg7 {[%clk 0:03:00.1]} 6. O-O {[%clk 0:02:28.9]} 6... O-O {[%clk
0:03:00.6]} 7. d4 {[%clk 0:02:29.2]} 7... cxd4 {[%clk 0:03:00]} 8. Nxd4 {[%clk
0:02:29.9]} 8... Qa5 {[%clk 0:03:00.6]} 9. Nb3 {[%clk 0:02:28.3]} 9... Qh5
{[%clk 0:02:59.9]} 10. e4 {[%clk 0:02:28.5]} 10... Qxd1 {[%clk 0:02:59]} 11.
Rxd1 {[%clk 0:02:28.5]} 11... d6 {[%clk 0:02:59.9]} 12. c5 {[%clk 0:02:19.3]}
12... dxc5 {[%clk 0:02:55.3]} 13. Nxc5 {[%clk 0:02:19]} 13... e5 {[%clk
0:02:55.6]} 14. Bg5 {[%clk 0:02:09.6]} 14... b6 {[%clk 0:02:53.5]} 15. Nb3
{[%clk 0:02:08.2]} 15... Be6 {[%clk 0:02:49.5]} 16. Bxf6 {[%clk 0:02:04.4]}
16... Bxf6 {[%clk 0:02:49]} 17. Nd5 {[%clk 0:02:04.6]} 17... Bg7 {[%clk
0:02:49.3]} 18. Rac1 {[%clk 0:02:03]} 18... Nd4 {[%clk 0:02:49]} 19. Nxd4 {[%clk
0:01:45.9]} 19... exd4 {[%clk 0:02:49.9]} 20. Nc7 {[%clk 0:01:45.9]} 20... Rac8
{[%clk 0:02:42.5]} 21. Nxe6 {[%clk 0:01:45.4]} 21... fxe6 {[%clk 0:02:43.4]} 22.
Bh3 {[%clk 0:01:44.8]} 22... Kf7 {[%clk 0:02:42.5]} 23. f4 {[%clk 0:01:41.6]}
23... Ke7 {[%clk 0:02:29]} 24. e5 {[%clk 0:01:38]} 24... Rxc1 {[%clk 0:02:27.3]}
25. Rxc1 {[%clk 0:01:38]} 25... Rd8 {[%clk 0:02:18.5]} 26. Rc7+ {[%clk
0:01:34.9]} 26... Rd7 {[%clk 0:02:18.7]} 27. Rxd7+ {[%clk 0:01:34.7]} 27... Kxd7
{[%clk 0:02:19.6]} 28. Kf2 {[%clk 0:01:34.2]} 28... Bf8 {[%clk 0:02:17.5]} 29.
Ke2 {[%clk 0:01:31.9]} 29... a5 {[%clk 0:01:56.4]} 30. Kf2 {[%clk 0:01:32.8]}
30... Bc5 {[%clk 0:01:53.7]} 31. Ke2 {[%clk 0:01:33.7]} 31... d3+ {[%clk
0:01:49.6]} 32. Kxd3 {[%clk 0:01:34.6]} 32... Bg1 {[%clk 0:01:50.1]} 33. Ke2
{[%clk 0:01:31]} 33... h5 {[%clk 0:01:45.9]} 34. Kf1 {[%clk 0:01:27.5]} 34...
Bd4 {[%clk 0:01:45.4]} 35. b3 {[%clk 0:01:27.5]} 35... g5 {[%clk 0:01:44.6]} 36.
fxg5 {[%clk 0:01:23.5]} 36... Bxe5 {[%clk 0:01:44.3]} 37. Kf2 {[%clk 0:01:19.7]}
37... Bd4+ {[%clk 0:01:43]} 38. Kg2 {[%clk 0:01:16.2]} 38... Be3 {[%clk
0:01:41.9]} 39. g6 {[%clk 0:01:16.2]} 39... Ke7 {[%clk 0:01:41.2]} 40. Kf3
{[%clk 0:01:11.7]} 40... Bg1 {[%clk 0:01:39.6]} 41. Kg2 {[%clk 0:01:09.6]} 41...
Bd4 {[%clk 0:01:39.2]} 42. g4 {[%clk 0:01:03.1]} 42... h4 {[%clk 0:01:37.5]} 43.
g5 {[%clk 0:01:01.9]} 43... Be3 {[%clk 0:01:34.8]} 44. Kf3 {[%clk 0:00:58.9]}
44... Bxg5 {[%clk 0:01:34.2]} 45. Kg4 {[%clk 0:00:59]} 45... Bf6 {[%clk
0:01:27.7]} 46. Bg2 {[%clk 0:00:58]} 46... Be5 {[%clk 0:01:17.3]} 47. h3 {[%clk
0:00:55.5]} 47... Kf6 {[%clk 0:01:15.1]} 48. Be4 {[%clk 0:00:55.2]} 48... Bg3
{[%clk 0:01:14.9]} 49. Bd3 {[%clk 0:00:54.2]} 49... Be1 {[%clk 0:01:12.4]} 50.
Kf3 {[%clk 0:00:52.4]} 50... b5 {[%clk 0:01:07.9]} 51. Kg4 {[%clk 0:00:49.5]}
51... b4 {[%clk 0:01:04.8]} 52. Kf3 {[%clk 0:00:49.1]} 52... Bc3 {[%clk
0:01:03.4]} 53. Kg4 {[%clk 0:00:48.3]} 53... Be1 {[%clk 0:01:03.4]} 54. Kf3
{[%clk 0:00:48.3]} 54... Bg3 {[%clk 0:01:01.1]} 55. Kg4 {[%clk 0:00:48.3]} 55...
Kg7 {[%clk 0:01:00.9]} 56. Kg5 {[%clk 0:00:45.6]} 56... Be1 {[%clk 0:00:59.9]}
57. Bc4 {[%clk 0:00:42.5]} 57... e5 {[%clk 0:00:58.1]} 58. Bd3 {[%clk
0:00:42.3]} 58... Bg3 {[%clk 0:00:55.3]} 59. Kf5 {[%clk 0:00:42.1]} 59... Bf4
{[%clk 0:00:51.6]} 60. Kg4 {[%clk 0:00:41.1]} 60... Bg3 {[%clk 0:00:50.9]} 61.
Be4 {[%clk 0:00:41]} 61... Kf6 {[%clk 0:00:47.5]} 62. Kh5 {[%clk 0:00:41.1]}
62... Kg7 {[%clk 0:00:47.4]} 63. Kg5 {[%clk 0:00:40.2]} 63... Be1 {[%clk
0:00:47.2]} 64. Kf5 {[%clk 0:00:39.7]} 64... Bg3 {[%clk 0:00:47.4]} 65. Ke6
{[%clk 0:00:39.6]} 65... Bf4 {[%clk 0:00:39.9]} 66. Kf5 {[%clk 0:00:37.8]} 66...
Bg3 {[%clk 0:00:39.6]} 67. Ke6 {[%clk 0:00:36.6]} 67... Bf4 {[%clk 0:00:39.2]}
68. Kd5 {[%clk 0:00:35.5]} 68... Kh6 {[%clk 0:00:29.8]} 69. Ke6 {[%clk
0:00:32.7]} 69... Kg7 {[%clk 0:00:29.4]} 1/2-1/2

[Event "*** Titled Tuesday Blitz"]
[Site "Chess.com"]
[Date "2020.04.28"]
[Round "9"]
[White "EddieMarsalla"]
[Black "VALPARAISO37"]
[Result "1-0"]
[WhiteElo "2521"]
[BlackElo "2353"]
[TimeControl "180+1"]
[EndTime "11:47:03 PDT"]
[Termination "EddieMarsalla won on time"]

1. d4 {[%clk 0:03:00.9]} 1... Nf6 {[%clk 0:02:02.4]} 2. Bg5 {[%clk 0:02:57.8]}
2... c5 {[%clk 0:02:02.1]} 3. e3 {[%clk 0:02:57.4]} 3... d5 {[%clk 0:02:01.9]}
4. c3 {[%clk 0:02:57.2]} 4... Nc6 {[%clk 0:02:01.9]} 5. Nf3 {[%clk 0:02:55]}
5... Qb6 {[%clk 0:02:01.3]} 6. Qb3 {[%clk 0:02:54.5]} 6... c4 {[%clk 0:02:01.8]}
7. Qc2 {[%clk 0:02:54.7]} 7... Bf5 {[%clk 0:01:59.7]} 8. Qc1 {[%clk 0:02:54.9]}
8... Ne4 {[%clk 0:01:58.2]} 9. Bf4 {[%clk 0:02:54.2]} 9... f6 {[%clk 0:01:58.1]}
10. Nbd2 {[%clk 0:02:53.8]} 10... e5 {[%clk 0:01:53.4]} 11. dxe5 {[%clk
0:02:48.6]} 11... g5 {[%clk 0:01:52.1]} 12. Bg3 {[%clk 0:02:44.7]} 12... Nxg3
{[%clk 0:01:38.9]} 13. hxg3 {[%clk 0:02:43.8]} 13... Nxe5 {[%clk 0:01:37.9]} 14.
Nxe5 {[%clk 0:02:41.3]} 14... fxe5 {[%clk 0:01:37.3]} 15. Nf3 {[%clk 0:02:40.2]}
15... Qf6 {[%clk 0:01:31.3]} 16. Qd2 {[%clk 0:02:39.8]} 16... O-O-O {[%clk
0:01:28]} 17. b3 {[%clk 0:02:39.7]} 17... Ba3 {[%clk 0:01:24]} 18. Be2 {[%clk
0:02:37.5]} 18... h5 {[%clk 0:01:22.4]} 19. Kf1 {[%clk 0:02:33]} 19... h4 {[%clk
0:01:22.1]} 20. gxh4 {[%clk 0:02:31.8]} 20... gxh4 {[%clk 0:01:20.9]} 21. Rd1
{[%clk 0:02:23.1]} 21... Be4 {[%clk 0:01:09.9]} 22. Ne1 {[%clk 0:02:12.6]} 22...
h3 {[%clk 0:01:09.8]} 23. Rxh3 {[%clk 0:02:12.1]} 23... Rxh3 {[%clk 0:01:06.3]}
24. gxh3 {[%clk 0:02:13]} 24... b5 {[%clk 0:01:00.3]} 25. bxc4 {[%clk
0:02:12.3]} 25... bxc4 {[%clk 0:00:58.6]} 26. Nc2 {[%clk 0:02:01.6]} 26... Bc5
{[%clk 0:00:52.6]} 27. Nb4 {[%clk 0:02:00.9]} 27... Rg8 {[%clk 0:00:50.4]} 28.
Bg4+ {[%clk 0:01:54.3]} 28... Rxg4 {[%clk 0:00:50.2]} 29. hxg4 {[%clk
0:01:48.3]} 29... Bf3 {[%clk 0:00:50.3]} 30. Nxd5 {[%clk 0:01:44.8]} 30... Qh4
{[%clk 0:00:50.3]} 31. Nb6+ {[%clk 0:01:29.5]} 31... axb6 {[%clk 0:00:45.4]} 32.
Qd7+ {[%clk 0:01:29.2]} 32... Kb8 {[%clk 0:00:45.6]} 33. Qd8+ {[%clk 0:01:29.8]}
33... Qxd8 {[%clk 0:00:45]} 34. Rxd8+ {[%clk 0:01:30.7]} 34... Kc7 {[%clk
0:00:45.5]} 35. Rg8 {[%clk 0:01:30.3]} 35... Be4 {[%clk 0:00:44.6]} 36. g5
{[%clk 0:01:27.4]} 36... Bd5 {[%clk 0:00:44.2]} 37. Rg7+ {[%clk 0:01:23.6]}
37... Kc6 {[%clk 0:00:44.5]} 38. g6 {[%clk 0:01:24.5]} 38... b5 {[%clk 0:00:43]}
39. Ke2 {[%clk 0:01:17.6]} 39... b4 {[%clk 0:00:43.2]} 40. cxb4 {[%clk
0:01:17.3]} 40... Bxb4 {[%clk 0:00:43.9]} 41. Ra7 {[%clk 0:01:12.7]} 41... Kb6
{[%clk 0:00:42.4]} 42. Rd7 {[%clk 0:01:10.2]} 42... Be6 {[%clk 0:00:39.1]} 43.
g7 {[%clk 0:01:09.4]} 43... c3 {[%clk 0:00:36.5]} 44. Kd3 {[%clk 0:01:04.1]}
44... Bxa2 {[%clk 0:00:36.4]} 45. Kc2 {[%clk 0:00:53.2]} 45... Kb5 {[%clk
0:00:29.5]} 46. Rd8 {[%clk 0:00:52.1]} 46... Ka4 {[%clk 0:00:28.6]} 47. g8=Q
{[%clk 0:00:51.6]} 47... Bxg8 {[%clk 0:00:28.2]} 48. Rxg8 {[%clk 0:00:52.5]}
48... Kb5 {[%clk 0:00:28.1]} 49. Rg5 {[%clk 0:00:51.2]} 49... Kc4 {[%clk
0:00:24.6]} 50. Rxe5 {[%clk 0:00:50.6]} 50... Bf8 {[%clk 0:00:23.9]} 51. f4
{[%clk 0:00:46.8]} 51... Bg7 {[%clk 0:00:23.8]} 52. Rg5 {[%clk 0:00:45.6]} 52...
Bf6 {[%clk 0:00:23.2]} 53. Rg6 {[%clk 0:00:46]} 53... Bh8 {[%clk 0:00:23.2]} 54.
Rd6 {[%clk 0:00:45.8]} 54... Kc5 {[%clk 0:00:22.9]} 55. Rd3 {[%clk 0:00:45.6]}
55... Kc4 {[%clk 0:00:23.2]} 56. e4 {[%clk 0:00:45.9]} 56... Bg7 {[%clk
0:00:22.7]} 57. e5 {[%clk 0:00:46.2]} 57... Bh8 {[%clk 0:00:22]} 58. e6 {[%clk
0:00:46.5]} 58... Bf6 {[%clk 0:00:20.2]} 59. Rd7 {[%clk 0:00:46.3]} 59... Kc5
{[%clk 0:00:19.8]} 60. e7 {[%clk 0:00:46.3]} 60... Bxe7 {[%clk 0:00:20.7]} 61.
Rxe7 {[%clk 0:00:46]} 61... Kd6 {[%clk 0:00:21.5]} 62. Re5 {[%clk 0:00:45.2]}
1-0

[Event "*** Titled Tuesday Blitz"]
[Site "Chess.com"]
[Date "2020.04.28"]
[Round "9"]
[White "Unknown_IM"]
[Black "francyIM"]
[Result "0-1"]
[WhiteElo "2514"]
[BlackElo "2709"]
[TimeControl "180+1"]
[EndTime "11:47:04 PDT"]
[Termination "francyIM won on time"]

1. Nf3 {[%clk 0:02:56.6]} 1... Nf6 {[%clk 0:02:58.1]} 2. c4 {[%clk 0:02:56.9]}
2... e6 {[%clk 0:02:55.7]} 3. g3 {[%clk 0:02:57.1]} 3... d5 {[%clk 0:02:46.6]}
4. Bg2 {[%clk 0:02:57.5]} 4... dxc4 {[%clk 0:02:46.2]} 5. O-O {[%clk 0:02:56.1]}
5... Nbd7 {[%clk 0:02:43.5]} 6. Qa4 {[%clk 0:02:51.7]} 6... a6 {[%clk
0:02:43.4]} 7. Qxc4 {[%clk 0:02:51.8]} 7... b5 {[%clk 0:02:43.5]} 8. Qc2 {[%clk
0:02:51.9]} 8... Bb7 {[%clk 0:02:42.8]} 9. b3 {[%clk 0:02:52.3]} 9... c5 {[%clk
0:02:42.6]} 10. Bb2 {[%clk 0:02:52.7]} 10... Be7 {[%clk 0:02:42.3]} 11. d3
{[%clk 0:02:53.2]} 11... O-O {[%clk 0:02:41.2]} 12. Nbd2 {[%clk 0:02:53.6]}
12... Rc8 {[%clk 0:02:41.5]} 13. Rac1 {[%clk 0:02:53.5]} 13... Qb6 {[%clk
0:02:38.6]} 14. Qb1 {[%clk 0:02:52.1]} 14... Rfd8 {[%clk 0:02:38.7]} 15. Rc2
{[%clk 0:02:50.7]} 15... Nf8 {[%clk 0:02:38.8]} 16. Qa1 {[%clk 0:02:49.2]} 16...
Ne8 {[%clk 0:02:38.2]} 17. h4 {[%clk 0:02:47.4]} 17... Bf6 {[%clk 0:02:38]} 18.
Rfc1 {[%clk 0:02:45.4]} 18... Bxb2 {[%clk 0:02:37.5]} 19. Qxb2 {[%clk
0:02:46.3]} 19... Nd7 {[%clk 0:02:37.4]} 20. Ne4 {[%clk 0:02:20]} 20... Bxe4
{[%clk 0:02:36.2]} 21. dxe4 {[%clk 0:02:20.9]} 21... Nd6 {[%clk 0:02:32.7]} 22.
e5 {[%clk 0:02:05.5]} 22... Nf5 {[%clk 0:02:28.9]} 23. g4 {[%clk 0:01:59.4]}
23... Ne7 {[%clk 0:02:28.6]} 24. h5 {[%clk 0:01:59.8]} 24... Nc6 {[%clk
0:02:25.6]} 25. h6 {[%clk 0:01:54.6]} 25... g6 {[%clk 0:02:25]} 26. Qc3 {[%clk
0:01:54.1]} 26... Nb4 {[%clk 0:02:24.2]} 27. Rd2 {[%clk 0:01:49.8]} 27... Nd5
{[%clk 0:02:23]} 28. Qd3 {[%clk 0:01:40.8]} 28... Nf8 {[%clk 0:02:21.5]} 29. Qe4
{[%clk 0:01:40.4]} 29... Qa5 {[%clk 0:02:06.2]} 30. Rdc2 {[%clk 0:01:34.1]}
30... b4 {[%clk 0:01:54.4]} 31. Ng5 {[%clk 0:01:31.4]} 31... Qb6 {[%clk
0:01:36]} 32. Qf3 {[%clk 0:01:29.2]} 32... Qa7 {[%clk 0:01:28.9]} 33. e4 {[%clk
0:01:25]} 33... Qe7 {[%clk 0:01:28.9]} 34. Nxf7 {[%clk 0:00:40.7]} 34... Nc3
{[%clk 0:01:12.1]} 35. Nd6 {[%clk 0:00:38.4]} 35... Rc7 {[%clk 0:01:07.7]} 36.
Rd2 {[%clk 0:00:31.5]} 36... Qg5 {[%clk 0:01:06.2]} 37. Rcc2 {[%clk 0:00:25]}
37... Qxh6 {[%clk 0:00:50.8]} 38. Nf5 {[%clk 0:00:18.4]} 38... Qg5 {[%clk
0:00:49.8]} 39. Nh6+ {[%clk 0:00:16.6]} 39... Kg7 {[%clk 0:00:45.2]} 40. Qf6+
{[%clk 0:00:16.3]} 40... Kxh6 {[%clk 0:00:37.3]} 41. Rxd8 {[%clk 0:00:13]} 41...
Qxf6 {[%clk 0:00:34.3]} 42. exf6 {[%clk 0:00:13.9]} 42... Nd7 {[%clk 0:00:33.7]}
43. f7 {[%clk 0:00:14]} 43... Kg7 {[%clk 0:00:33.5]} 44. Rd2 {[%clk 0:00:10.8]}
44... Nf8 {[%clk 0:00:33.6]} 45. Ra8 {[%clk 0:00:06.3]} 45... Rxf7 {[%clk
0:00:25.7]} 46. Rxa6 {[%clk 0:00:06.2]} 46... g5 {[%clk 0:00:25.7]} 47. e5
{[%clk 0:00:05.5]} 47... Re7 {[%clk 0:00:22.5]} 48. a3 {[%clk 0:00:05.6]} 48...
Ng6 {[%clk 0:00:22.1]} 49. axb4 {[%clk 0:00:05.4]} 49... cxb4 {[%clk 0:00:23]}
50. Rb6 {[%clk 0:00:05.3]} 50... Nxe5 {[%clk 0:00:21.5]} 51. Rxb4 {[%clk
0:00:05.8]} 51... Ra7 {[%clk 0:00:20.4]} 52. Rb6 {[%clk 0:00:03.8]} 52... Kf6
{[%clk 0:00:20]} 53. Kh2 {[%clk 0:00:03.5]} 53... Nxg4+ {[%clk 0:00:19.2]} 54.
Kg3 {[%clk 0:00:04]} 54... Ne5 {[%clk 0:00:19.6]} 55. Bh3 {[%clk 0:00:03.6]}
55... Ne4+ {[%clk 0:00:18.9]} 56. Kg2 {[%clk 0:00:02.1]} 56... g4 {[%clk
0:00:19.2]} 0-1

[Event "*** Titled Tuesday Blitz"]
[Site "Chess.com"]
[Date "2020.04.28"]
[Round "9"]
[White "Keks2017"]
[Black "aNaartjieZA"]
[Result "1/2-1/2"]
[WhiteElo "2443"]
[BlackElo "2594"]
[TimeControl "180+1"]
[EndTime "11:47:04 PDT"]
[Termination "Game drawn by agreement"]

1. e4 {[%clk 0:03:00.9]} 1... e6 {[%clk 0:03:00]} 2. d3 {[%clk 0:03:00.4]} 2...
d5 {[%clk 0:03:00.2]} 3. Nd2 {[%clk 0:03:00.3]} 3... Nf6 {[%clk 0:02:59.8]} 4.
Ngf3 {[%clk 0:03:00]} 4... Nc6 {[%clk 0:02:59.9]} 5. c3 {[%clk 0:02:57.3]} 5...
a5 {[%clk 0:02:53.7]} 6. Be2 {[%clk 0:02:55.8]} 6... dxe4 {[%clk 0:02:48.4]} 7.
dxe4 {[%clk 0:02:55.2]} 7... Bc5 {[%clk 0:02:48.1]} 8. O-O {[%clk 0:02:54.2]}
8... O-O {[%clk 0:02:48.2]} 9. Qc2 {[%clk 0:02:53.9]} 9... e5 {[%clk 0:02:47.3]}
10. Nc4 {[%clk 0:02:52.5]} 10... Qe7 {[%clk 0:02:46.6]} 11. a4 {[%clk
0:02:51.9]} 11... b6 {[%clk 0:02:37.3]} 12. Ne3 {[%clk 0:02:51.2]} 12... Be6
{[%clk 0:02:30.9]} 13. Bb5 {[%clk 0:02:46.8]} 13... Bd7 {[%clk 0:02:20.2]} 14.
Nf5 {[%clk 0:02:40.2]} 14... Bxf5 {[%clk 0:02:13.5]} 15. Bxc6 {[%clk 0:02:33]}
15... Bg4 {[%clk 0:02:12.3]} 16. Bxa8 {[%clk 0:02:30.4]} 16... Bxf3 {[%clk
0:02:12.4]} 17. gxf3 {[%clk 0:02:20.9]} 17... Rxa8 {[%clk 0:02:10.2]} 18. Be3
{[%clk 0:02:20.8]} 18... Bd6 {[%clk 0:02:09.8]} 19. Kh1 {[%clk 0:02:20.3]} 19...
Nh5 {[%clk 0:02:09.2]} 20. Rg1 {[%clk 0:02:18.2]} 20... Qf6 {[%clk 0:02:05.5]}
21. Qe2 {[%clk 0:02:16.5]} 21... g6 {[%clk 0:02:00.5]} 22. Rad1 {[%clk 0:02:10]}
22... Qe6 {[%clk 0:01:59.6]} 23. Qf1 {[%clk 0:01:42.4]} 23... Rb8 {[%clk
0:01:45.8]} 24. Rd5 {[%clk 0:01:34.2]} 24... Qe8 {[%clk 0:01:36.7]} 25. b3
{[%clk 0:01:30.6]} 25... Bf8 {[%clk 0:01:32.5]} 26. c4 {[%clk 0:01:27.1]} 26...
Qe7 {[%clk 0:01:22.6]} 27. Bg5 {[%clk 0:01:18]} 27... Qe6 {[%clk 0:01:17.5]} 28.
Rd8 {[%clk 0:01:08.7]} 28... Rxd8 {[%clk 0:01:11.2]} 29. Bxd8 {[%clk 0:01:07.4]}
29... Bd6 {[%clk 0:01:11.2]} 30. Bg5 {[%clk 0:01:05.9]} 30... Kg7 {[%clk
0:01:09.3]} 31. Be3 {[%clk 0:01:00.9]} 31... Qf6 {[%clk 0:01:05.1]} 32. Qe2
{[%clk 0:01:00]} 32... Nf4 {[%clk 0:01:00.4]} 33. Bxf4 {[%clk 0:00:58.8]} 33...
Qxf4 {[%clk 0:01:00.4]} 34. Qe3 {[%clk 0:00:58.3]} 34... Qf6 {[%clk 0:00:59.3]}
35. Rg3 {[%clk 0:00:56.5]} 35... h5 {[%clk 0:00:58.3]} 36. Qg5 {[%clk
0:00:35.2]} 36... Qxg5 {[%clk 0:00:43.2]} 37. Rxg5 {[%clk 0:00:34.9]} 37... Kf6
{[%clk 0:00:36.4]} 38. Rg1 {[%clk 0:00:34.2]} 38... Ke6 {[%clk 0:00:31.8]} 39.
Kg2 {[%clk 0:00:33.4]} 39... Kd7 {[%clk 0:00:31.1]} 40. Rd1 {[%clk 0:00:30.2]}
40... Ke6 {[%clk 0:00:27.5]} 41. Rd5 {[%clk 0:00:28.3]} 41... f6 {[%clk
0:00:26.8]} 42. Kg3 {[%clk 0:00:26.3]} 42... Be7 {[%clk 0:00:24.1]} 43. Kg2
{[%clk 0:00:24.1]} 43... Bd6 {[%clk 0:00:23.8]} 44. Kf1 {[%clk 0:00:24]} 44...
Ke7 {[%clk 0:00:23.7]} 45. Ke2 {[%clk 0:00:23.9]} 45... Bc5 {[%clk 0:00:24]} 46.
Rd1 {[%clk 0:00:22.3]} 46... Bd4 {[%clk 0:00:23]} 47. Rg1 {[%clk 0:00:20.4]}
47... Kf7 {[%clk 0:00:22.8]} 48. Rf1 {[%clk 0:00:20]} 48... c5 {[%clk
0:00:22.1]} 49. Rd1 {[%clk 0:00:18.8]} 49... g5 {[%clk 0:00:21.3]} 50. h3 {[%clk
0:00:18]} 50... h4 {[%clk 0:00:21]} 51. Rg1 {[%clk 0:00:17.6]} 51... Kg6 {[%clk
0:00:20.4]} 52. Rd1 {[%clk 0:00:17.4]} 52... f5 {[%clk 0:00:20.2]} 53. exf5+
{[%clk 0:00:16.6]} 53... Kxf5 {[%clk 0:00:20.2]} 54. Rg1 {[%clk 0:00:16.3]}
54... Bc3 {[%clk 0:00:19.8]} 55. Rg4 {[%clk 0:00:16]} 55... Bd4 {[%clk
0:00:19.7]} 56. Re4 {[%clk 0:00:15.9]} 56... Bc3 {[%clk 0:00:19.2]} 57. Rg4
{[%clk 0:00:15.8]} 57... Bd4 {[%clk 0:00:19.2]} 58. Re4 {[%clk 0:00:15.8]} 58...
Bc3 {[%clk 0:00:19.2]} 1/2-1/2

[Event "*** Titled Tuesday Blitz"]
[Site "Chess.com"]
[Date "2020.04.28"]
[Round "9"]
[White "Trankuilizer"]
[Black "Semen_Khanin"]
[Result "0-1"]
[WhiteElo "2516"]
[BlackElo "2714"]
[TimeControl "180+1"]
[EndTime "11:47:05 PDT"]
[Termination "Semen_Khanin won on time"]

1. e4 {[%clk 0:03:00.9]} 1... e5 {[%clk 0:02:56.3]} 2. Nf3 {[%clk 0:03:00.7]}
2... Nc6 {[%clk 0:02:55.6]} 3. Bc4 {[%clk 0:02:59.9]} 3... Bc5 {[%clk
0:02:54.8]} 4. c3 {[%clk 0:02:59.9]} 4... Nf6 {[%clk 0:02:55]} 5. d3 {[%clk
0:02:59.7]} 5... d6 {[%clk 0:02:54.8]} 6. Nbd2 {[%clk 0:02:59.1]} 6... a6 {[%clk
0:02:54.2]} 7. Bb3 {[%clk 0:02:58.9]} 7... h6 {[%clk 0:02:54.3]} 8. h3 {[%clk
0:02:58.9]} 8... Bd7 {[%clk 0:02:48.1]} 9. Nc4 {[%clk 0:02:58.5]} 9... Qe7
{[%clk 0:02:47.2]} 10. Ne3 {[%clk 0:02:58.2]} 10... O-O-O {[%clk 0:02:43.7]} 11.
Nd5 {[%clk 0:02:56.4]} 11... Nxd5 {[%clk 0:02:42]} 12. Bxd5 {[%clk 0:02:57.3]}
12... f5 {[%clk 0:02:40.4]} 13. b4 {[%clk 0:02:57.3]} 13... Bb6 {[%clk
0:02:38.4]} 14. a4 {[%clk 0:02:57.9]} 14... a5 {[%clk 0:02:33.7]} 15. b5 {[%clk
0:02:48]} 15... Nb8 {[%clk 0:02:32.6]} 16. Be3 {[%clk 0:02:48.5]} 16... Bxe3
{[%clk 0:02:25.5]} 17. fxe3 {[%clk 0:02:49.4]} 17... Rhf8 {[%clk 0:02:25]} 18.
O-O {[%clk 0:02:00.6]} 18... g5 {[%clk 0:02:22.5]} 19. Nd2 {[%clk 0:01:58.9]}
19... f4 {[%clk 0:02:17.2]} 20. Nc4 {[%clk 0:01:58]} 20... b6 {[%clk 0:02:12.2]}
21. d4 {[%clk 0:01:57.7]} 21... g4 {[%clk 0:02:07.4]} 22. dxe5 {[%clk
0:01:50.5]} 22... dxe5 {[%clk 0:02:06.6]} 23. exf4 {[%clk 0:01:50.6]} 23... exf4
{[%clk 0:02:04.3]} 24. hxg4 {[%clk 0:01:50.8]} 24... Qg5 {[%clk 0:02:02.7]} 25.
Qd4 {[%clk 0:01:31.4]} 25... Bxg4 {[%clk 0:01:54.5]} 26. Qe5 {[%clk 0:01:14.5]}
26... Nd7 {[%clk 0:01:41.5]} 27. Qxg5 {[%clk 0:01:14.5]} 27... hxg5 {[%clk
0:01:41.8]} 28. Bc6 {[%clk 0:00:50.1]} 28... Be2 {[%clk 0:01:38.7]} 29. Bxd7+
{[%clk 0:00:44.6]} 29... Rxd7 {[%clk 0:01:38.2]} 30. Ne5 {[%clk 0:00:45.2]}
30... Re7 {[%clk 0:01:27.8]} 31. Ng6 {[%clk 0:00:44.9]} 31... Bxf1 {[%clk
0:01:22.1]} 32. Rxf1 {[%clk 0:00:44.3]} 32... Rfe8 {[%clk 0:01:20.3]} 33. Nxe7+
{[%clk 0:00:43.7]} 33... Rxe7 {[%clk 0:01:20.7]} 34. Re1 {[%clk 0:00:42.6]}
34... Re5 {[%clk 0:01:16.5]} 35. Kf2 {[%clk 0:00:32.7]} 35... Rc5 {[%clk
0:01:14.7]} 36. Rc1 {[%clk 0:00:12.5]} 36... Kd7 {[%clk 0:01:10.2]} 37. Kf3
{[%clk 0:00:12.7]} 37... Ke6 {[%clk 0:01:09]} 38. Kg4 {[%clk 0:00:10.7]} 38...
Ke5 {[%clk 0:01:08.9]} 39. Kxg5 {[%clk 0:00:10.9]} 39... Kxe4+ {[%clk
0:01:08.6]} 40. Kg4 {[%clk 0:00:11.5]} 40... Rc4 {[%clk 0:01:04.9]} 41. Rf1
{[%clk 0:00:10]} 41... Ke5 {[%clk 0:00:26.7]} 42. Re1+ {[%clk 0:00:09.1]} 42...
Kd5 {[%clk 0:00:26.7]} 43. Rd1+ {[%clk 0:00:07.2]} 43... Kc5 {[%clk 0:00:25.7]}
44. Rd4 {[%clk 0:00:07.3]} 44... Rxd4 {[%clk 0:00:15.8]} 45. cxd4+ {[%clk
0:00:07.4]} 45... Kb4 {[%clk 0:00:16.4]} 46. Kxf4 {[%clk 0:00:07.9]} 46... Kxa4
{[%clk 0:00:16.6]} 47. g4 {[%clk 0:00:08.5]} 47... Kxb5 {[%clk 0:00:16.3]} 48.
g5 {[%clk 0:00:08.9]} 48... a4 {[%clk 0:00:16.8]} 49. g6 {[%clk 0:00:09]} 49...
a3 {[%clk 0:00:17.2]} 50. g7 {[%clk 0:00:09.3]} 50... a2 {[%clk 0:00:17.7]} 51.
g8=Q {[%clk 0:00:09.4]} 51... a1=Q {[%clk 0:00:18]} 52. Qd5+ {[%clk 0:00:04]}
52... Kb4 {[%clk 0:00:18.2]} 53. Kf5 {[%clk 0:00:02.5]} 53... Qf1+ {[%clk
0:00:17.7]} 54. Kg6 {[%clk 0:00:01.5]} 54... Qd3+ {[%clk 0:00:16.5]} 0-1